[Event "GrandPrix_30.05"]
[Site "Chess.com"]
[Date "2020.05.30"]
[Round "4"]
[White "Bosiocic"]
[Black "BogdanBelyakov89"]
[Result "1-0"]
[WhiteElo "2704"]
[BlackElo "2289"]
[TimeControl "600+2"]
[EndTime "9:46:13 PDT"]
[Termination "Bosiocic won by resignation"]

1. d4 {[%clk 0:10:01.9]} 1... Nf6 {[%clk 0:10:00.4]} 2. Bg5 {[%clk 0:10:03]}
2... c5 {[%clk 0:10:00.6]} 3. d5 {[%clk 0:10:03.6]} 3... Qb6 {[%clk 0:09:59.1]}
4. Bc1 {[%clk 0:10:03.9]} 4... g6 {[%clk 0:09:52.8]} 5. Nc3 {[%clk 0:10:04.5]}
5... Qa5 {[%clk 0:09:44.1]} 6. Bd2 {[%clk 0:09:37]} 6... b5 {[%clk 0:09:31.9]}
7. e4 {[%clk 0:09:33.5]} 7... b4 {[%clk 0:09:22]} 8. e5 {[%clk 0:09:34.5]} 8...
bxc3 {[%clk 0:08:40]} 9. Bxc3 {[%clk 0:09:34.3]} 9... Qb6 {[%clk 0:08:29.8]} 10.
exf6 {[%clk 0:09:35]} 10... exf6 {[%clk 0:08:31.1]} 11. Qe2+ {[%clk 0:09:35.7]}
11... Be7 {[%clk 0:07:38.3]} 12. O-O-O {[%clk 0:08:48.6]} 12... Kf8 {[%clk
0:07:29.8]} 13. d6 {[%clk 0:05:57.7]} 13... Bd8 {[%clk 0:06:46.8]} 14. h4 {[%clk
0:04:20.8]} 14... h5 {[%clk 0:05:48.2]} 15. Rh3 {[%clk 0:03:55.4]} 15... Nc6
{[%clk 0:05:46.7]} 16. Re3 {[%clk 0:03:32.1]} 16... Nd4 {[%clk 0:05:28.2]} 17.
Bxd4 {[%clk 0:03:29.9]} 17... cxd4 {[%clk 0:05:27.9]} 18. Re8+ {[%clk
0:03:30.8]} 18... Kg7 {[%clk 0:05:28.9]} 19. Rxh8 {[%clk 0:03:31.3]} 19... Kxh8
{[%clk 0:05:28.8]} 20. Qe8+ {[%clk 0:03:27.3]} 20... Kg7 {[%clk 0:05:27.8]} 21.
Bc4 {[%clk 0:03:27.2]} 21... Qxd6 {[%clk 0:05:04.8]} 22. Qxf7+ {[%clk
0:03:14.4]} 22... Kh6 {[%clk 0:04:59.5]} 23. Qg8 {[%clk 0:03:15.1]} 23... Qe7
{[%clk 0:04:24]} 24. Bf7 {[%clk 0:03:12]} 1-0

[Event "GrandPrix_30.05"]
[Site "Chess.com"]
[Date "2020.05.30"]
[Round "4"]
[White "rfhfb"]
[Black "Cocolino12"]
[Result "1/2-1/2"]
[WhiteElo "2122"]
[BlackElo "2208"]
[TimeControl "600+2"]
[EndTime "9:46:16 PDT"]
[Termination "Game drawn by agreement"]

1. d4 {[%clk 0:10:01.9]} 1... d5 {[%clk 0:10:00.4]} 2. c4 {[%clk 0:10:01.8]}
2... c6 {[%clk 0:10:00.8]} 3. Nf3 {[%clk 0:10:01.6]} 3... Nf6 {[%clk 0:10:00.7]}
4. e3 {[%clk 0:10:00.8]} 4... Bf5 {[%clk 0:09:59.5]} 5. Nc3 {[%clk 0:10:01]}
5... e6 {[%clk 0:09:59.8]} 6. Nh4 {[%clk 0:10:00.1]} 6... Bg6 {[%clk 0:09:58]}
7. Be2 {[%clk 0:09:58.1]} 7... Nbd7 {[%clk 0:09:55]} 8. O-O {[%clk 0:09:52.1]}
8... Bd6 {[%clk 0:09:54.1]} 9. g3 {[%clk 0:09:52.6]} 9... O-O {[%clk 0:09:46.9]}
10. Nxg6 {[%clk 0:09:51.3]} 10... hxg6 {[%clk 0:09:48.8]} 11. b3 {[%clk
0:09:52.9]} 11... e5 {[%clk 0:09:34.2]} 12. cxd5 {[%clk 0:09:21]} 12... Nxd5
{[%clk 0:09:34.6]} 13. Nxd5 {[%clk 0:09:14.2]} 13... cxd5 {[%clk 0:09:36.5]} 14.
dxe5 {[%clk 0:09:15.6]} 14... Bxe5 {[%clk 0:09:32.8]} 15. Rb1 {[%clk 0:09:07.1]}
15... Nf6 {[%clk 0:09:32]} 16. Bb2 {[%clk 0:08:53]} 16... Qe7 {[%clk 0:09:28.6]}
17. Bxe5 {[%clk 0:07:47.9]} 17... Qxe5 {[%clk 0:09:30.5]} 18. Rc1 {[%clk
0:07:49.6]} 18... Rac8 {[%clk 0:09:15.6]} 19. Qd3 {[%clk 0:07:42.5]} 19... Qb2
{[%clk 0:09:03.4]} 20. Rxc8 {[%clk 0:07:23.8]} 20... Rxc8 {[%clk 0:09:05.3]} 21.
Bf3 {[%clk 0:07:24.5]} 21... Rc2 {[%clk 0:08:20.7]} 22. Qb5 {[%clk 0:06:33.2]}
22... b6 {[%clk 0:08:18.9]} 23. a4 {[%clk 0:06:13.1]} 23... Rc3 {[%clk
0:08:13.2]} 24. Bd1 {[%clk 0:04:55.9]} 24... g5 {[%clk 0:07:58]} 25. Qa6 {[%clk
0:04:11]} 25... Rc7 {[%clk 0:07:53.6]} 26. Qd3 {[%clk 0:03:52.6]} 26... g6
{[%clk 0:07:40]} 27. Bf3 {[%clk 0:03:04.1]} 27... Qc3 {[%clk 0:07:17.8]} 28. Rd1
{[%clk 0:02:42.6]} 28... Qe5 {[%clk 0:07:15]} 29. Bxd5 {[%clk 0:02:35.2]} 29...
Rd7 {[%clk 0:07:03.7]} 30. e4 {[%clk 0:01:09.8]} 30... Nxe4 {[%clk 0:06:57.8]}
31. Re1 {[%clk 0:01:05.7]} 31... Qxd5 {[%clk 0:06:51]} 1/2-1/2

[Event "GrandPrix_30.05"]
[Site "Chess.com"]
[Date "2020.05.30"]
[Round "4"]
[White "IwkooO"]
[Black "SamadovRead"]
[Result "1-0"]
[WhiteElo "2320"]
[BlackElo "1963"]
[TimeControl "600+2"]
[EndTime "9:46:29 PDT"]
[Termination "IwkooO won by resignation"]

1. e4 {[%clk 0:10:01.9]} 1... c5 {[%clk 0:10:00.1]} 2. Nf3 {[%clk 0:10:03]} 2...
d6 {[%clk 0:10:01.2]} 3. d4 {[%clk 0:10:04.6]} 3... cxd4 {[%clk 0:10:02.9]} 4.
Nxd4 {[%clk 0:10:06.5]} 4... Nf6 {[%clk 0:10:04.1]} 5. Nc3 {[%clk 0:10:08.1]}
5... e6 {[%clk 0:10:05.4]} 6. Be3 {[%clk 0:09:47.3]} 6... a6 {[%clk 0:10:05.1]}
7. f3 {[%clk 0:09:48.4]} 7... b5 {[%clk 0:10:04.5]} 8. g4 {[%clk 0:09:16.4]}
8... h6 {[%clk 0:09:55.7]} 9. Qd2 {[%clk 0:09:16.3]} 9... Nbd7 {[%clk
0:09:55.5]} 10. h4 {[%clk 0:09:15.5]} 10... b4 {[%clk 0:08:46.9]} 11. Nce2
{[%clk 0:08:50.4]} 11... Ne5 {[%clk 0:08:26.1]} 12. Ng3 {[%clk 0:08:19.3]} 12...
d5 {[%clk 0:07:11.7]} 13. g5 {[%clk 0:08:12.3]} 13... hxg5 {[%clk 0:06:45]} 14.
hxg5 {[%clk 0:08:12.1]} 14... Rxh1 {[%clk 0:06:46.3]} 15. Nxh1 {[%clk 0:08:14]}
15... Nh7 {[%clk 0:05:47.5]} 16. f4 {[%clk 0:08:10]} 16... Nc4 {[%clk
0:05:35.2]} 17. Bxc4 {[%clk 0:08:01.1]} 17... dxc4 {[%clk 0:05:37.1]} 18. O-O-O
{[%clk 0:07:56.8]} 18... Bc5 {[%clk 0:04:23.1]} 19. Qh2 {[%clk 0:07:54]} 19...
Nf8 {[%clk 0:04:19.9]} 20. Nf2 {[%clk 0:07:38.5]} 20... Bb7 {[%clk 0:04:07]} 21.
Kb1 {[%clk 0:07:37.2]} 21... Qb6 {[%clk 0:04:02]} 22. Qh8 {[%clk 0:06:58.2]}
22... e5 {[%clk 0:02:30.1]} 23. Nf5 {[%clk 0:06:29.7]} 23... Bxe3 {[%clk
0:02:13.1]} 24. Nxg7+ {[%clk 0:06:29.6]} 24... Ke7 {[%clk 0:02:14.2]} 25. Nf5+
{[%clk 0:06:30.7]} 25... Ke8 {[%clk 0:02:15.4]} 26. Qxe5+ {[%clk 0:06:27.4]}
26... Ne6 {[%clk 0:02:12.7]} 27. Qh8+ {[%clk 0:06:27.5]} 27... Nf8 {[%clk
0:02:12.4]} 28. Ng4 {[%clk 0:06:21.6]} 28... Bd4 {[%clk 0:01:22.3]} 29. Rxd4
{[%clk 0:06:19]} 1-0

[Event "GrandPrix_30.05"]
[Site "Chess.com"]
[Date "2020.05.30"]
[Round "4"]
[White "LANCELOT96"]
[Black "Keks2017"]
[Result "0-1"]
[WhiteElo "2142"]
[BlackElo "2377"]
[TimeControl "600+2"]
[EndTime "9:46:40 PDT"]
[Termination "Keks2017 won by resignation"]

1. d4 {[%clk 0:10:00.7]} 1... d6 {[%clk 0:10:00.2]} 2. c4 {[%clk 0:10:02.2]}
2... e5 {[%clk 0:10:00.3]} 3. Nf3 {[%clk 0:10:03.8]} 3... Nd7 {[%clk 0:09:59.9]}
4. Nc3 {[%clk 0:10:04.7]} 4... Ngf6 {[%clk 0:09:59]} 5. e4 {[%clk 0:10:05.9]}
5... Be7 {[%clk 0:09:59.4]} 6. Be2 {[%clk 0:10:07.2]} 6... O-O {[%clk
0:09:59.5]} 7. O-O {[%clk 0:10:08.8]} 7... c6 {[%clk 0:09:59.6]} 8. h3 {[%clk
0:10:01.7]} 8... Qc7 {[%clk 0:09:59.5]} 9. Be3 {[%clk 0:10:02.9]} 9... Re8
{[%clk 0:09:56.6]} 10. Rc1 {[%clk 0:10:03.6]} 10... Nf8 {[%clk 0:09:56.9]} 11.
dxe5 {[%clk 0:10:02.2]} 11... dxe5 {[%clk 0:09:56.8]} 12. c5 {[%clk 0:10:03.2]}
12... Ng6 {[%clk 0:09:50.6]} 13. Nd2 {[%clk 0:10:04.1]} 13... Nf4 {[%clk
0:09:41.7]} 14. Nc4 {[%clk 0:10:05]} 14... Nxe2+ {[%clk 0:09:36.1]} 15. Qxe2
{[%clk 0:10:05.6]} 15... Be6 {[%clk 0:09:36.1]} 16. Rfd1 {[%clk 0:09:59.5]}
16... Rad8 {[%clk 0:09:35.2]} 17. b4 {[%clk 0:10:00.8]} 17... a6 {[%clk
0:09:33.3]} 18. a3 {[%clk 0:10:01.2]} 18... h6 {[%clk 0:09:23.6]} 19. f3 {[%clk
0:10:00.6]} 19... Nh5 {[%clk 0:09:07.8]} 20. Kh2 {[%clk 0:09:51.1]} 20... Nf4
{[%clk 0:08:59.9]} 21. Qf1 {[%clk 0:09:42.6]} 21... Rxd1 {[%clk 0:08:17.5]} 22.
Rxd1 {[%clk 0:09:43.3]} 22... Rd8 {[%clk 0:08:16.6]} 23. Rxd8+ {[%clk
0:09:23.1]} 23... Bxd8 {[%clk 0:08:16.1]} 24. Nd6 {[%clk 0:08:49.9]} 24... Bg5
{[%clk 0:07:58.8]} 25. Qe1 {[%clk 0:08:06.2]} 25... Qd7 {[%clk 0:07:40.5]} 26.
h4 {[%clk 0:08:07.4]} 26... Be7 {[%clk 0:07:32.8]} 27. Qd2 {[%clk 0:07:01.6]}
27... Ng6 {[%clk 0:06:42.5]} 28. g3 {[%clk 0:06:57.8]} 28... Nf8 {[%clk
0:06:35.9]} 29. Na4 {[%clk 0:06:50.5]} 29... b5 {[%clk 0:05:16.3]} 30. Nb6
{[%clk 0:06:51]} 30... Qd8 {[%clk 0:05:16.4]} 31. a4 {[%clk 0:06:51.8]} 31...
Bxh4 {[%clk 0:04:10]} 32. gxh4 {[%clk 0:06:53]} 32... Qxh4+ {[%clk 0:04:10.1]}
33. Kg1 {[%clk 0:06:54.7]} 33... Qg3+ {[%clk 0:04:06.4]} 34. Kf1 {[%clk
0:06:51.3]} 34... Qxf3+ {[%clk 0:03:58.9]} 35. Ke1 {[%clk 0:06:52.6]} 35... Bg4
{[%clk 0:03:48]} 36. axb5 {[%clk 0:06:48.5]} 36... axb5 {[%clk 0:03:47.7]} 37.
Nbc8 {[%clk 0:05:48.8]} 37... Qh1+ {[%clk 0:03:35.1]} 38. Kf2 {[%clk 0:05:49.8]}
38... Qh4+ {[%clk 0:03:28.1]} 39. Kf1 {[%clk 0:05:42.5]} 39... Bxc8 {[%clk
0:03:11.5]} 40. Nxc8 {[%clk 0:05:42.5]} 40... Qh3+ {[%clk 0:03:11.9]} 41. Qg2
{[%clk 0:05:44.2]} 41... Qxc8 {[%clk 0:03:10.9]} 42. Bxh6 {[%clk 0:05:46.1]}
42... Ng6 {[%clk 0:03:10.6]} 43. Be3 {[%clk 0:05:45.1]} 43... Qe6 {[%clk
0:03:06.5]} 44. Qg5 {[%clk 0:05:45]} 44... Qf6+ {[%clk 0:03:04.3]} 45. Ke2
{[%clk 0:05:42.3]} 45... Qxg5 {[%clk 0:03:01.4]} 46. Kd3 {[%clk 0:05:44.2]}
46... Qg3 {[%clk 0:02:58.8]} 0-1

[Event "GrandPrix_30.05"]
[Site "Chess.com"]
[Date "2020.05.30"]
[Round "4"]
[White "Nikame"]
[Black "esskeettit"]
[Result "1-0"]
[WhiteElo "2256"]
[BlackElo "2111"]
[TimeControl "600+2"]
[EndTime "9:46:56 PDT"]
[Termination "Nikame won by resignation"]

1. d4 {[%clk 0:10:01.9]} 1... Nf6 {[%clk 0:09:58.7]} 2. Bg5 {[%clk 0:09:59.7]}
2... e6 {[%clk 0:09:59.8]} 3. Nd2 {[%clk 0:09:59.2]} 3... h6 {[%clk 0:10:00.6]}
4. Bh4 {[%clk 0:09:59]} 4... d5 {[%clk 0:09:55.3]} 5. e3 {[%clk 0:09:58.3]} 5...
Be7 {[%clk 0:09:54.8]} 6. Bd3 {[%clk 0:09:58.2]} 6... c5 {[%clk 0:09:55.8]} 7.
c3 {[%clk 0:09:58.4]} 7... Nc6 {[%clk 0:09:53.3]} 8. Ngf3 {[%clk 0:09:53.4]}
8... b6 {[%clk 0:09:41.7]} 9. Bb5 {[%clk 0:09:11.5]} 9... Bd7 {[%clk 0:09:42.4]}
10. O-O {[%clk 0:09:06.5]} 10... O-O {[%clk 0:09:41]} 11. Qe2 {[%clk 0:08:01.2]}
11... Ne4 {[%clk 0:09:19.8]} 12. Bxe7 {[%clk 0:07:41]} 12... Qxe7 {[%clk
0:09:21.7]} 13. Nxe4 {[%clk 0:07:32.2]} 13... dxe4 {[%clk 0:09:23.6]} 14. Nd2
{[%clk 0:07:30.8]} 14... f5 {[%clk 0:09:16.9]} 15. a4 {[%clk 0:07:22.5]} 15...
Rac8 {[%clk 0:09:09.3]} 16. dxc5 {[%clk 0:07:06.7]} 16... Qxc5 {[%clk
0:09:09.5]} 17. Nc4 {[%clk 0:07:00]} 17... e5 {[%clk 0:08:32.5]} 18. Rad1 {[%clk
0:06:44.8]} 18... Be6 {[%clk 0:08:26.8]} 19. Rd6 {[%clk 0:06:35.9]} 19... Nd8
{[%clk 0:07:28.4]} 20. b3 {[%clk 0:06:16.3]} 20... Kh7 {[%clk 0:06:32.1]} 21.
Rfd1 {[%clk 0:06:08.5]} 21... Bxc4 {[%clk 0:05:18.1]} 22. Bxc4 {[%clk 0:05:42]}
22... Nf7 {[%clk 0:04:50.1]} 23. Rd7 {[%clk 0:05:21.3]} 23... Rc7 {[%clk
0:04:30.8]} 24. Qh5 {[%clk 0:04:20.1]} 24... Rxd7 {[%clk 0:03:54.3]} 25. Rxd7
{[%clk 0:04:19.6]} 25... Ng5 {[%clk 0:03:50.9]} 26. h4 {[%clk 0:04:07.9]} 26...
Qc8 {[%clk 0:03:39.6]} 27. Rd6 {[%clk 0:03:59.6]} 27... f4 {[%clk 0:03:13]} 28.
hxg5 {[%clk 0:03:53.8]} 28... fxe3 {[%clk 0:03:14.4]} 29. Rxh6+ {[%clk
0:03:51.8]} 1-0

[Event "GrandPrix_30.05"]
[Site "Chess.com"]
[Date "2020.05.30"]
[Round "4"]
[White "BashirliN"]
[Black "vpantev"]
[Result "0-1"]
[WhiteElo "2185"]
[BlackElo "2598"]
[TimeControl "600+2"]
[EndTime "9:47:05 PDT"]
[Termination "vpantev won by resignation"]

1. e4 {[%clk 0:10:01.9]} 1... c6 {[%clk 0:09:59]} 2. Nc3 {[%clk 0:09:48.1]} 2...
d5 {[%clk 0:09:59.4]} 3. d4 {[%clk 0:09:47.5]} 3... dxe4 {[%clk 0:10:00]} 4.
Nxe4 {[%clk 0:09:49.4]} 4... Nf6 {[%clk 0:10:01.4]} 5. Nxf6+ {[%clk 0:09:45.3]}
5... exf6 {[%clk 0:10:03.3]} 6. c3 {[%clk 0:09:46.2]} 6... Bd6 {[%clk
0:10:02.5]} 7. Bd3 {[%clk 0:09:47.1]} 7... O-O {[%clk 0:10:01.7]} 8. Qc2 {[%clk
0:09:44.5]} 8... Re8+ {[%clk 0:10:00.5]} 9. Ne2 {[%clk 0:09:45.7]} 9... Kh8
{[%clk 0:10:01.2]} 10. O-O {[%clk 0:09:41.5]} 10... Qc7 {[%clk 0:09:48.7]} 11.
h3 {[%clk 0:08:37.4]} 11... Nd7 {[%clk 0:09:44.3]} 12. c4 {[%clk 0:07:52.5]}
12... Nf8 {[%clk 0:09:42.5]} 13. Re1 {[%clk 0:07:00.1]} 13... Be6 {[%clk
0:09:35.9]} 14. Be3 {[%clk 0:06:41.1]} 14... Ng6 {[%clk 0:09:30.5]} 15. Rad1
{[%clk 0:06:27]} 15... Kg8 {[%clk 0:08:33.5]} 16. d5 {[%clk 0:06:11.2]} 16...
cxd5 {[%clk 0:08:30.3]} 17. cxd5 {[%clk 0:06:13.1]} 17... Qxc2 {[%clk
0:08:12.7]} 18. Bxc2 {[%clk 0:06:12.8]} 18... Bd7 {[%clk 0:08:13.2]} 19. Nc3
{[%clk 0:06:10]} 19... f5 {[%clk 0:07:54.4]} 20. Bd3 {[%clk 0:05:50.1]} 20... a6
{[%clk 0:07:49]} 21. Bd4 {[%clk 0:04:43.8]} 21... Kf8 {[%clk 0:07:04.2]} 22.
Rxe8+ {[%clk 0:04:40.6]} 22... Rxe8 {[%clk 0:07:03.9]} 23. a3 {[%clk 0:04:17.1]}
23... Ne5 {[%clk 0:06:47.4]} 24. Bf1 {[%clk 0:04:07.4]} 24... Rc8 {[%clk
0:06:44]} 25. f4 {[%clk 0:03:54.4]} 25... Nc4 {[%clk 0:06:09.6]} 26. Bxc4 {[%clk
0:03:41.9]} 26... Rxc4 {[%clk 0:06:09.2]} 27. g3 {[%clk 0:03:05.8]} 27... Rxd4
{[%clk 0:06:07.8]} 28. Rxd4 {[%clk 0:02:54.6]} 28... Bc5 {[%clk 0:06:08.7]} 29.
Ne2 {[%clk 0:02:46.5]} 29... Bb5 {[%clk 0:05:55]} 30. Kh2 {[%clk 0:02:34.9]}
30... Bxe2 {[%clk 0:05:54.3]} 31. Rd2 {[%clk 0:02:36.6]} 31... Bb5 {[%clk
0:05:47.1]} 32. Rc2 {[%clk 0:02:24.3]} 32... Bd6 {[%clk 0:05:39.4]} 33. Rc8+
{[%clk 0:02:17.1]} 33... Ke7 {[%clk 0:05:27]} 34. b3 {[%clk 0:02:14.9]} 34...
Bd7 {[%clk 0:05:09.8]} 0-1

[Event "GrandPrix_30.05"]
[Site "Chess.com"]
[Date "2020.05.30"]
[Round "4"]
[White "DaVinci81"]
[Black "LiamVrolijk"]
[Result "1-0"]
[WhiteElo "2557"]
[BlackElo "2385"]
[TimeControl "600+2"]
[EndTime "9:47:13 PDT"]
[Termination "DaVinci81 won by resignation"]

1. Nf3 {[%clk 0:10:01.9]} 1... d5 {[%clk 0:09:59.5]} 2. d4 {[%clk 0:10:02.2]}
2... c5 {[%clk 0:09:46.7]} 3. c4 {[%clk 0:10:01.8]} 3... e6 {[%clk 0:09:45.9]}
4. cxd5 {[%clk 0:09:16.7]} 4... exd5 {[%clk 0:09:47.8]} 5. Bg5 {[%clk
0:09:17.3]} 5... Nf6 {[%clk 0:09:34.2]} 6. Nc3 {[%clk 0:09:10.3]} 6... Be6
{[%clk 0:09:33.6]} 7. e3 {[%clk 0:09:04.1]} 7... c4 {[%clk 0:09:33.5]} 8. Be2
{[%clk 0:08:52.6]} 8... Bb4 {[%clk 0:09:33.2]} 9. O-O {[%clk 0:08:52.7]} 9...
O-O {[%clk 0:09:30.4]} 10. Ne5 {[%clk 0:08:51.5]} 10... Bxc3 {[%clk 0:09:26.8]}
11. bxc3 {[%clk 0:08:51.6]} 11... Qa5 {[%clk 0:09:28.2]} 12. Bxf6 {[%clk
0:08:45.5]} 12... gxf6 {[%clk 0:09:30.1]} 13. Ng4 {[%clk 0:08:45.6]} 13... Nd7
{[%clk 0:09:27.9]} 14. Qc2 {[%clk 0:08:39.8]} 14... Kg7 {[%clk 0:08:48.4]} 15.
f3 {[%clk 0:08:12.7]} 15... Bxg4 {[%clk 0:07:00.9]} 16. fxg4 {[%clk 0:08:12.9]}
16... Rae8 {[%clk 0:06:58.1]} 17. Rf3 {[%clk 0:07:44.9]} 17... Re4 {[%clk
0:06:54.3]} 18. Bxc4 {[%clk 0:07:13.1]} 18... Rc8 {[%clk 0:05:10.4]} 19. Bd3
{[%clk 0:06:47.8]} 19... Rxc3 {[%clk 0:05:06.7]} 20. Qe2 {[%clk 0:06:12.3]}
20... Re7 {[%clk 0:04:43.7]} 21. Raf1 {[%clk 0:05:39.1]} 21... Qa3 {[%clk
0:03:49.6]} 22. Rd1 {[%clk 0:05:23.7]} 22... Re6 {[%clk 0:03:15.8]} 23. Rh3
{[%clk 0:04:48]} 23... Nf8 {[%clk 0:03:15.3]} 24. Qf1 {[%clk 0:04:34.9]} 24...
Ng6 {[%clk 0:03:07.7]} 25. Bxg6 {[%clk 0:04:26.8]} 25... hxg6 {[%clk 0:03:01.1]}
26. Qf4 {[%clk 0:04:22.1]} 26... g5 {[%clk 0:02:43.9]} 27. Qb8 {[%clk 0:04:21]}
1-0

[Event "GrandPrix_30.05"]
[Site "Chess.com"]
[Date "2020.05.30"]
[Round "4"]
[White "DanielDardha2005"]
[Black "cukus"]
[Result "0-1"]
[WhiteElo "2319"]
[BlackElo "2212"]
[TimeControl "600+2"]
[EndTime "9:47:15 PDT"]
[Termination "cukus won by resignation"]

1. e4 {[%clk 0:10:01.9]} 1... c6 {[%clk 0:09:51.6]} 2. d3 {[%clk 0:09:58.3]}
2... d5 {[%clk 0:09:50.4]} 3. Nd2 {[%clk 0:09:59.6]} 3... g6 {[%clk 0:09:49.1]}
4. Ngf3 {[%clk 0:09:59.8]} 4... Bg7 {[%clk 0:09:49.4]} 5. g3 {[%clk 0:10:01.2]}
5... e5 {[%clk 0:09:50.3]} 6. Bg2 {[%clk 0:10:02.5]} 6... Ne7 {[%clk 0:09:50.2]}
7. O-O {[%clk 0:10:03.9]} 7... O-O {[%clk 0:09:51.2]} 8. c3 {[%clk 0:10:04.7]}
8... a5 {[%clk 0:09:50.3]} 9. b3 {[%clk 0:09:57]} 9... h6 {[%clk 0:09:35.3]} 10.
Bb2 {[%clk 0:09:55.3]} 10... Be6 {[%clk 0:09:34.1]} 11. a3 {[%clk 0:09:51.6]}
11... Nd7 {[%clk 0:09:34.6]} 12. b4 {[%clk 0:09:50.7]} 12... axb4 {[%clk
0:09:02.7]} 13. axb4 {[%clk 0:09:50.8]} 13... Rxa1 {[%clk 0:09:03.4]} 14. Qxa1
{[%clk 0:09:48.3]} 14... f5 {[%clk 0:08:55]} 15. Re1 {[%clk 0:09:30.8]} 15...
dxe4 {[%clk 0:08:18.2]} 16. dxe4 {[%clk 0:09:32.7]} 16... f4 {[%clk 0:08:18.7]}
17. c4 {[%clk 0:09:27.3]} 17... Qc7 {[%clk 0:08:17.3]} 18. h4 {[%clk 0:09:00.9]}
18... Kh7 {[%clk 0:07:04.7]} 19. Kh2 {[%clk 0:08:55.9]} 19... Ng8 {[%clk
0:06:47.4]} 20. Bh3 {[%clk 0:08:48.6]} 20... Bxh3 {[%clk 0:06:44.2]} 21. Kxh3
{[%clk 0:08:50.5]} 21... fxg3 {[%clk 0:06:35.2]} 22. fxg3 {[%clk 0:08:49.9]}
22... Ngf6 {[%clk 0:06:17.8]} 23. Bxe5 {[%clk 0:07:37.2]} 23... Nxe5 {[%clk
0:05:46.3]} 24. Qxe5 {[%clk 0:07:36]} 24... Qd7+ {[%clk 0:05:35.8]} 25. Kg2
{[%clk 0:07:34.9]} 25... Nd5 {[%clk 0:04:31.2]} 26. exd5 {[%clk 0:06:40]} 26...
Bxe5 {[%clk 0:04:30.6]} 27. Nxe5 {[%clk 0:06:40.9]} 27... Qc7 {[%clk 0:04:05.3]}
28. dxc6 {[%clk 0:06:31.9]} 28... bxc6 {[%clk 0:04:05.8]} 29. Ne4 {[%clk
0:06:32.9]} 29... Qa7 {[%clk 0:03:39.5]} 30. Rd1 {[%clk 0:05:59.2]} 30... Qe3
{[%clk 0:03:27.9]} 31. Rd7+ {[%clk 0:04:22.9]} 31... Kg8 {[%clk 0:03:27.8]} 32.
Ng4 {[%clk 0:04:10.2]} 32... Qxe4+ {[%clk 0:03:26.1]} 33. Kh3 {[%clk 0:04:11.2]}
33... Qh1+ {[%clk 0:02:57.6]} 34. Nh2 {[%clk 0:04:11.1]} 34... Rf2 {[%clk
0:02:55.6]} 0-1

[Event "GrandPrix_30.05"]
[Site "Chess.com"]
[Date "2020.05.30"]
[Round "4"]
[White "StephenDedalus83"]
[Black "VojtechPlat"]
[Result "0-1"]
[WhiteElo "2109"]
[BlackElo "2260"]
[TimeControl "600+2"]
[EndTime "9:47:53 PDT"]
[Termination "VojtechPlat won by checkmate"]

1. e4 {[%clk 0:10:01.9]} 1... d6 {[%clk 0:10:00.7]} 2. d4 {[%clk 0:10:01.8]}
2... Nf6 {[%clk 0:10:01.8]} 3. Nc3 {[%clk 0:10:02.1]} 3... e5 {[%clk 0:10:03.3]}
4. Nf3 {[%clk 0:10:01.9]} 4... Nbd7 {[%clk 0:10:03.6]} 5. Bc4 {[%clk 0:10:02.3]}
5... Be7 {[%clk 0:10:04.7]} 6. O-O {[%clk 0:10:02.6]} 6... O-O {[%clk
0:10:05.8]} 7. Re1 {[%clk 0:10:03.4]} 7... c6 {[%clk 0:10:06.8]} 8. a4 {[%clk
0:10:04.1]} 8... a5 {[%clk 0:10:08.4]} 9. b3 {[%clk 0:10:04]} 9... Qc7 {[%clk
0:10:09]} 10. h3 {[%clk 0:10:03.9]} 10... Nb6 {[%clk 0:10:07.9]} 11. Bd3 {[%clk
0:10:04]} 11... Re8 {[%clk 0:10:08.9]} 12. Bb2 {[%clk 0:10:02.2]} 12... Bf8
{[%clk 0:10:09.9]} 13. Ne2 {[%clk 0:10:00]} 13... Nbd7 {[%clk 0:10:01.4]} 14.
Ng3 {[%clk 0:09:58.5]} 14... g6 {[%clk 0:10:02.2]} 15. c4 {[%clk 0:09:54.6]}
15... exd4 {[%clk 0:09:59.8]} 16. Nxd4 {[%clk 0:09:52.3]} 16... Bg7 {[%clk
0:10:00.3]} 17. Qd2 {[%clk 0:09:45.8]} 17... Nc5 {[%clk 0:09:54.5]} 18. Bc2
{[%clk 0:09:46]} 18... Be6 {[%clk 0:09:47.7]} 19. Rad1 {[%clk 0:09:40.4]} 19...
Rad8 {[%clk 0:09:47.9]} 20. Bc3 {[%clk 0:09:27.8]} 20... b6 {[%clk 0:09:44.8]}
21. Qc1 {[%clk 0:08:54.9]} 21... Bc8 {[%clk 0:09:44.6]} 22. Qb2 {[%clk
0:08:54.5]} 22... Ncd7 {[%clk 0:09:31.7]} 23. f4 {[%clk 0:08:36.7]} 23... Bb7
{[%clk 0:08:02.1]} 24. Bb1 {[%clk 0:08:04.4]} 24... h5 {[%clk 0:06:17.4]} 25.
Nf3 {[%clk 0:08:02.4]} 25... b5 {[%clk 0:06:15.4]} 26. axb5 {[%clk 0:07:33.3]}
26... cxb5 {[%clk 0:06:15.6]} 27. cxb5 {[%clk 0:07:33.8]} 27... Qc5+ {[%clk
0:05:58.1]} 28. Kh2 {[%clk 0:07:22.8]} 28... Ng4+ {[%clk 0:05:57.4]} 29. hxg4
{[%clk 0:07:17.6]} 29... Bxc3 {[%clk 0:05:57.8]} 30. Qe2 {[%clk 0:06:55.6]}
30... hxg4 {[%clk 0:05:50.2]} 31. Ng5 {[%clk 0:06:54.6]} 31... Kg7 {[%clk
0:05:50.6]} 32. Nf1 {[%clk 0:06:35.4]} 32... Rh8+ {[%clk 0:05:46.2]} 33. Kg3
{[%clk 0:06:36.4]} 33... Nf6 {[%clk 0:05:39.9]} 34. Rc1 {[%clk 0:06:29.3]} 34...
Bc8 {[%clk 0:03:50]} 35. Qe3 {[%clk 0:05:50.5]} 35... Bxe1+ {[%clk 0:03:32]} 36.
Rxe1 {[%clk 0:05:51.2]} 36... Nh5+ {[%clk 0:03:32]} 37. Kf2 {[%clk 0:05:52]}
37... Nxf4 {[%clk 0:03:33]} 38. Qxc5 {[%clk 0:05:48.5]} 38... dxc5 {[%clk
0:03:33.4]} 39. e5 {[%clk 0:05:41]} 39... Rh5 {[%clk 0:03:18.2]} 40. Ne4 {[%clk
0:05:39.4]} 40... Rxe5 {[%clk 0:03:18.4]} 41. Ne3 {[%clk 0:05:36.3]} 41... f5
{[%clk 0:03:04.7]} 42. Nc3 {[%clk 0:05:30.6]} 42... Rd2+ {[%clk 0:02:54.2]} 43.
Kg3 {[%clk 0:05:31]} 43... g5 {[%clk 0:02:30.9]} 44. b6 {[%clk 0:04:49.4]} 44...
Rxe3+ {[%clk 0:02:29.2]} 45. Rxe3 {[%clk 0:04:47.8]} 45... Rxg2# {[%clk
0:02:28.9]} 0-1